fUSD/lending_fUSD_20240423
["ID","MTS","AMOUNT","RATE_DAILY","PERIOD"]
[323248913,1713845446601,-500.0,0.00012475,2]
[323248914,1713845446611,-502.7,0.00012475,2]
[323248915,1713845446622,-500.0,0.00012475,2]
[323248916,1713845446631,-1548.75,0.00012475,2]
[323248917,1713845446641,-500.0,0.00012475,2]
[323248918,1713845446651,-500.0,0.00012475,2]
[323248919,1713845446662,-1249.27009627,0.00012476,2]
[323248920,1713845446671,-501.53741838,0.00012476,2]
[323248921,1713845446681,-500.0,0.00012476,2]
[323248922,1713845446690,-500.0,0.00012476,2]
[323248923,1713845446700,-500.0,0.00012476,2]
[323248924,1713845446709,-1422.34,0.00012476,2]
[323248925,1713845446719,-500.0,0.00012476,2]
[323248926,1713845446728,-500.0,0.00012476,2]
[323248927,1713845446738,-500.0,0.00012476,2]
[323248928,1713845446748,-383.39150634,0.00012476,2]
[323248929,1713845446756,-500.0,0.00012476,2]
[323248930,1713845446767,-3935.65,0.00012476,2]
[323248931,1713845446777,-500.0,0.00012476,2]
[323248932,1713845446786,-500.0,0.00012476,2]
[323248934,1713845446796,-2345.26,0.00012476,2]
[323248935,1713845446806,-500.0,0.00012476,2]
[323248936,1713845446816,-500.52456462,0.00012476,2]
[323248937,1713845446826,-500.0,0.00012476,2]
[323248938,1713845446837,-677.7,0.00012476,2]
[323248939,1713845446846,-500.0,0.00012476,2]
[323248940,1713845446856,-500.0,0.00012476,2]
[323248941,1713845446865,-1821.68,0.00012476,2]
[323248942,1713845446875,-500.0,0.00012476,2]
[323248943,1713845446885,-1174.61,0.00012476,2]
[323248944,1713845446894,-510.00209836,0.00012476,2]
[323248945,1713845446904,-500.38236092,0.00012476,2]
[323248946,1713845446916,-500.0,0.00012476,2]
[323248947,1713845446925,-540.29,0.00012476,2]
[323248948,1713845446935,-500.0,0.00012476,2]
[323248949,1713845446945,-1117.42,0.00012476,2]
[323248950,1713845446954,-3974.55,0.00012476,2]
[323248951,1713845446964,-500.0,0.00012476,2]
[323248952,1713845446974,-578.7,0.00012476,2]
[323248953,1713845446984,-11368.55,0.00012476,2]
[323248954,1713845446993,-922.68,0.00012476,2]
[323248955,1713845447003,-3818.66,0.00012476,2]
[323248956,1713845447013,-500.0,0.00012476,2]
[323248957,1713845447022,-500.0,0.00012476,2]
[323248958,1713845447032,-673.56,0.00012476,2]
[323248959,1713845447042,-500.0,0.00012476,2]
[323248960,1713845447052,-500.0,0.00012476,2]
[323248961,1713845447062,-249.7320373,0.00012476,2]
[323248962,1713845447072,-604.24,0.00012476,2]
[323248963,1713845447148,-500.0,0.00012476,2]
[323248964,1713845447158,-500.0,0.00012476,2]
[323248965,1713845447169,-369.34738943,0.00012476,2]
[323248966,1713845447178,-12359.64,0.00012476,2]
[323248967,1713845447187,-1894.17,0.00012476,2]
[323248968,1713845447196,-2370.74,0.00012476,2]
[323248969,1713845447205,-500.0,0.00012476,2]
[323248970,1713845447215,-500.0,0.00012476,2]
[323248971,1713845447224,-986.16,0.00012476,2]
[323248972,1713845447233,-858.0,0.00012477,2]
[323248973,1713845447243,-300982.0997229,0.00012477,2]
[323248974,1713845447705,-10803.5995,0.00012375,2]
[323248975,1713845447715,-38460.20738058,0.00012477,2]
[323248976,1713845447731,-464.23865725,0.00012477,2]
[323248977,1713845449024,-323.75317935,0.00012475,2]
[323248978,1713845450302,-1089.48111977,0.00012474,2]
[323248979,1713845450312,-176.24682065,0.00012475,2]
[323248980,1713845450321,-2432.03,0.00012475,2]
[323248981,1713845450331,-58235.73690457,0.00012477,2]
[323248982,1713845450347,-6659.15334381,0.00012477,2]
[323248983,1713845450358,-726.82083,0.00012477,2]
[323248984,1713845450370,-244852.24125821,0.00012477,2]
[323248985,1713845450381,-6652.224,0.00012477,2]
[323248986,1713845450465,-68.17330928,0.00012477,2]
[323248987,1713845473477,59136.006826,0.00027009,120]
[323248988,1713845500289,3444.0,0.00027,120]
[323248994,1713845847726,300.43,9.639e-05,2]
[323248996,1713846355661,3944.27971,0.00027,120]
[323248997,1713846568970,285.4,9.568e-05,2]
[323249002,1713846632423,-427.17989007,0.00011485,2]
[323249003,1713846632435,-192.82010993,0.00011486,2]
[323249004,1713846632582,-813.15989007,0.00011486,2]
[323249005,1713846632593,-515.77298231,0.00011539,2]
[323249006,1713846632608,-61.96653661,0.00011539,2]
[323249007,1713846632622,-453.8064457,0.00011539,2]
[323249008,1713846632634,-98.27910978,0.00011539,2]
[323249009,1713846632648,-417.49387253,0.00011539,2]
[323249010,1713846632659,-515.77298231,0.00011539,2]
[323249011,1713846632670,-150.0,0.00011565,2]
[323249012,1713846632682,-179.34241933,0.00011566,2]
[323249013,1713846632714,-820.65758067,0.00011566,2]
[323249014,1713846632725,-285.4,0.00011832,2]
[323249015,1713846632737,-1750.0,0.00012,2]
[323249016,1713846632749,-1128.22441722,0.0001235,2]
[323249017,1713846632812,-400.49866278,0.0001235,2]
[323249018,1713846632824,-1135.74748318,0.0001236,2]
[323249019,1713846632837,-841.82445714,0.0001236,2]
[323249020,1713846632850,-135.82359073,0.00012375,2]
[323249023,1713846638501,-3034.94070227,0.00012375,2]
[323249024,1713846638511,-1000.0,0.00012375,2]
[323249025,1713846638520,-2609.55929773,0.00012375,2]
[323249026,1713846638543,-7390.44070227,0.00012375,2]
[323249027,1713846638553,-256.5489,0.00012375,2]
[323249028,1713846638562,-177.04248623,0.00012377,2]
[323249029,1713846638571,-3170.76429291,0.00012423,2]
[323249030,1713846638581,-3170.76429291,0.0001247,2]
[323249031,1713846638590,-543.06760396,0.00012472,2]
[323249032,1713846638599,-1176.31,0.00012472,2]
[323249033,1713846638611,-55509.44,0.00012472,2]
[323249034,1713846638620,-5350.24,0.00012472,2]
[323249035,1713846638629,-500.0,0.00012472,2]
[323249036,1713846638639,-500.0,0.00012472,2]
[323249037,1713846638648,-500.0,0.00012472,2]
[323249038,1713846638657,-1728.96,0.00012472,2]
[323249039,1713846638665,-500.0,0.00012472,2]
[323249040,1713846638674,-621.16623162,0.00012472,2]
[323249041,1713846638683,-8239.89,0.00012472,2]
[323249042,1713846638692,-2964.78,0.00012472,2]
[323249043,1713846638701,-645.79,0.00012472,2]
[323249044,1713846638711,-1039.41,0.00012472,2]
[323249045,1713846638721,-560.73,0.00012472,2]
[323249046,1713846638730,-500.0,0.00012472,2]
[323249047,1713846638740,-677.42,0.00012472,2]
[323249048,1713846638749,-939.92,0.00012472,2]
[323249049,1713846638759,-500.0,0.00012472,2]
[323249051,1713846638768,-1685.63,0.00012472,2]
[323249053,1713846638778,-500.0,0.00012472,2]
[323249055,1713846638787,-6528.56,0.00012472,2]
[323249056,1713846638796,-5799.33,0.00012472,2]
[323249057,1713846638805,-5583.76,0.00012472,2]
[323249058,1713846638814,-500.0,0.00012472,2]
[323249059,1713846638823,-1430.76,0.00012472,2]
[323249060,1713846638832,-558.32,0.00012472,2]
[323249061,1713846638841,-11806.46,0.00012472,2]
[323249062,1713846638851,-3066.77,0.00012472,2]
[323249063,1713846638862,-500.0,0.00012472,2]
[323249064,1713846638872,-4199.41,0.00012472,2]
[323249065,1713846638881,-500.0,0.00012472,2]
[323249066,1713846638890,-500.0,0.00012472,2]
[323249067,1713846638899,-500.0,0.00012472,2]
[323249068,1713846638909,-1676.48,0.00012472,2]
[323249069,1713846638919,-500.0,0.00012472,2]
[323249070,1713846638929,-13373.09,0.00012472,2]
[323249071,1713846638939,-7685.58,0.00012472,2]
[323249072,1713846638949,-500.0,0.00012472,2]
[323249073,1713846638958,-507.1,0.00012472,2]
[323249074,1713846638967,-500.0,0.00012472,2]
[323249075,1713846638977,-1475.89,0.00012472,2]
[323249076,1713846638986,-500.0,0.00012472,2]
[323249077,1713846638996,-500.0,0.00012472,2]
[323249078,1713846639006,-717.97,0.00012472,2]
[323249079,1713846639250,-169.99078475,0.00012472,2]
[323249080,1713846639265,-1179.02,0.00012472,2]
[323249081,1713846639274,-12622.74,0.00012472,2]
[323249082,1713846639283,-1887.48,0.00012472,2]
[323249083,1713846639292,-500.0,0.00012472,2]
[323249084,1713846639301,-1297.92,0.00012472,2]
[323249085,1713846639310,-500.0,0.00012472,2]
[323249086,1713846639319,-500.0,0.00012472,2]
[323249087,1713846639329,-1361.43,0.00012472,2]
[323249088,1713846639338,-500.0,0.00012472,2]
[323249089,1713846639347,-500.0,0.00012472,2]
[323249090,1713846639358,-706.0,0.00012472,2]
[323249091,1713846639368,-988.16,0.00012472,2]
[323249092,1713846639377,-500.0,0.00012472,2]
[323249093,1713846639386,-1161.63,0.00012473,2]
[323249094,1713846639395,-503.74349775,0.00012473,2]
[323249095,1713846639404,-500.0,0.00012473,2]
[323249096,1713846639414,-500.0,0.00012473,2]
[323249097,1713846639423,-500.0,0.00012473,2]
[323249098,1713846639432,-739.22,0.00012473,2]
[323249099,1713846639441,-501.53741838,0.00012473,2]
[323249100,1713846639450,-500.0,0.00012473,2]
[323249101,1713846639459,-1013.13,0.00012473,2]
[323249102,1713846639469,-500.0,0.00012473,2]
[323249103,1713846639478,-500.0,0.00012473,2]
[323249104,1713846639487,-518.49772326,0.00012473,2]
[323249105,1713846639496,-1706.22,0.00012473,2]
[323249106,1713846639505,-500.0,0.00012473,2]
[323249107,1713846639514,-985.73,0.00012473,2]
[323249108,1713846639523,-500.0,0.00012473,2]
[323249109,1713846639533,-1152.28,0.00012473,2]
[323249110,1713846639542,-520.58254522,0.00012473,2]
[323249111,1713846639553,-503.27949879,0.00012473,2]
[323249112,1713846639563,-500.0,0.00012473,2]
[323249113,1713846639572,-503.50117415,0.00012473,2]
[323249114,1713846639582,-500.0,0.00012473,2]
[323249115,1713846639591,-1132.41,0.00012473,2]
[323249116,1713846639600,-500.0,0.00012473,2]
[323249117,1713846639612,-388.13965421,0.00012473,2]
[323249118,1713846639621,-1101.26,0.00012473,2]
[323249119,1713846639630,-503.09816844,0.00012473,2]
[323249120,1713846639639,-500.0,0.00012473,2]
[323249121,1713846639649,-505.86305804,0.00012473,2]
[323249122,1713846639659,-500.0,0.00012473,2]
[323249123,1713846639668,-500.0,0.00012473,2]
[323249124,1713846639678,-500.0,0.00012473,2]
[323249125,1713846639687,-500.0,0.00012473,2]
[323249126,1713846639696,-500.0,0.00012473,2]
[323249127,1713846639705,-500.0,0.00012473,2]
[323249128,1713846639714,-500.0,0.00012473,2]
[323249129,1713846639723,-284.78519005,0.00012473,2]
[323249130,1713846639732,-500.0,0.00012473,2]
[323249131,1713846639741,-633.52,0.00012473,2]
[323249132,1713846639751,-504.91672357,0.00012473,2]
[323249133,1713846639760,-500.0,0.00012473,2]
[323249134,1713846639769,-505.26171624,0.00012473,2]
[323249135,1713846639778,-503.84055438,0.00012473,2]
[323249136,1713846639787,-504.78799258,0.00012473,2]
[323249137,1713846639796,-500.0,0.00012473,2]
[323249138,1713846639805,-500.0,0.00012473,2]
[323249139,1713846639814,-500.0,0.00012473,2]
[323249140,1713846639823,-500.0,0.00012473,2]
[323249141,1713846639832,-500.0,0.00012473,2]
[323249142,1713846639841,-1130.53,0.00012473,2]
[323249143,1713846639850,-500.0,0.00012473,2]
[323249144,1713846639861,-500.0,0.00012473,2]
[323249145,1713846639870,-500.0,0.00012473,2]
[323249146,1713846639878,-500.0,0.00012473,2]
[323249147,1713846639887,-825.88,0.00012473,2]
[323249148,1713846639896,-500.0,0.00012473,2]
[323249149,1713846639905,-500.0,0.00012473,2]
[323249150,1713846639915,-506.44650279,0.00012473,2]
[323249151,1713846639924,-500.0,0.00012473,2]
[323249152,1713846639933,-328.60425986,0.00012473,2]
[323249153,1713846639943,-500.0,0.00012473,2]
[323249154,1713846639952,-503.39415504,0.00012473,2]
[323249155,1713846639961,-500.0,0.00012473,2]
[323249156,1713846639970,-504.3224236,0.00012473,2]
[323249157,1713846639979,-647.17,0.00012473,2]
[323249158,1713846639990,-500.0,0.00012473,2]
[323249159,1713846640002,-500.0,0.00012473,2]
[323249160,1713846640012,-530.1623283,0.00012473,2]
[323249161,1713846640021,-179.88022198,0.00012473,2]
[323249162,1713846640031,-506.47935853,0.00012473,2]
[323249163,1713846640040,-501.64429941,0.00012473,2]
[323249164,1713846640049,-506.30305929,0.00012473,2]
[323249165,1713846640059,-504.09832341,0.00012473,2]
[323249166,1713846640068,-502.77724712,0.00012473,2]
[323249167,1713846640078,-500.0,0.00012473,2]
[323249168,1713846640087,-150.0,0.00012473,2]
[323249169,1713846640097,-500.0,0.00012473,2]
[323249170,1713846640108,-500.0,0.00012473,2]
[323249171,1713846640118,-500.0,0.00012473,2]
[323249172,1713846640127,-500.0,0.00012473,2]
[323249173,1713846640136,-500.0,0.00012473,2]
[323249174,1713846640146,-500.0,0.00012473,2]
[323249175,1713846640156,-502.56897386,0.00012473,2]
[323249176,1713846640165,-500.0,0.00012473,2]
[323249177,1713846640176,-500.0,0.00012473,2]
[323249178,1713846640186,-503.25539977,0.00012473,2]
[323249179,1713846640195,-1186.48,0.00012473,2]
[323249180,1713846640204,-500.0,0.00012473,2]
[323249181,1713846640214,-500.0,0.00012473,2]
[323249182,1713846640223,-520.31547935,0.00012473,2]
[323249183,1713846640233,-304.67845089,0.00012473,2]
[323249184,1713846640242,-500.0,0.00012473,2]
[323249185,1713846640251,-500.0,0.00012473,2]
[323249186,1713846640261,-500.0,0.00012473,2]
[323249187,1713846640270,-500.0,0.00012473,2]
[323249188,1713846640279,-501.98009169,0.00012473,2]
[323249189,1713846640288,-500.0,0.00012473,2]
[323249190,1713846640298,-613.3092166,0.00012473,2]
[323249191,1713846640307,-500.0,0.00012473,2]
[323249192,1713846640317,-500.0,0.00012473,2]
[323249193,1713846640326,-500.0,0.00012473,2]
[323249194,1713846640335,-500.0,0.00012473,2]
[323249195,1713846640345,-500.0,0.00012473,2]
[323249196,1713846640354,-503.58604067,0.00012473,2]
[323249197,1713846640366,-500.0,0.00012473,2]
[323249198,1713846640375,-505.00928051,0.00012473,2]
[323249199,1713846640385,-500.0,0.00012473,2]
[323249200,1713846640394,-1796.59,0.00012473,2]
[323249201,1713846640404,-500.0,0.00012473,2]
[323249202,1713846640414,-457.22332614,0.00012473,2]
[323249203,1713846640426,-500.0,0.00012473,2]
[323249204,1713846640438,-500.0,0.00012473,2]
[323249205,1713846640448,-1240.2,0.00012473,2]
[323249206,1713846640458,-500.0,0.00012473,2]
[323249207,1713846640467,-500.0,0.00012473,2]
[323249208,1713846640476,-500.0,0.00012473,2]
[323249209,1713846640486,-500.0,0.00012473,2]
[323249210,1713846640497,-226.35515461,0.00012473,2]
[323249211,1713846640507,-500.0,0.00012473,2]
[323249212,1713846640518,-503.22269717,0.00012473,2]
[323249213,1713846640528,-500.0,0.00012473,2]
[323249214,1713846640538,-500.0,0.00012473,2]
[323249215,1713846640549,-460.27817615,0.00012473,2]
[323249216,1713846640560,-500.0,0.00012473,2]
[323249217,1713846640570,-500.0,0.00012473,2]
[323249218,1713846640580,-500.0,0.00012473,2]
[323249219,1713846640589,-500.0,0.00012473,2]
[323249220,1713846640600,-500.0,0.00012473,2]
[323249221,1713846640611,-555.57,0.00012473,2]
[323249222,1713846640621,-500.0,0.00012473,2]
[323249223,1713846640630,-500.0,0.00012473,2]
[323249224,1713846640641,-500.0,0.00012473,2]
[323249225,1713846640651,-500.0,0.00012473,2]
[323249226,1713846640661,-500.0,0.00012473,2]
[323249227,1713846640671,-500.0,0.00012473,2]
[323249228,1713846640681,-500.0,0.00012473,2]
[323249229,1713846640690,-500.0,0.00012473,2]
[323249230,1713846640700,-32659.34,0.00012473,2]
[323249231,1713846640710,-500.0,0.00012473,2]
[323249232,1713846640719,-611.51,0.00012473,2]
[323249233,1713846640729,-500.0,0.00012473,2]
[323249234,1713846640738,-500.0,0.00012473,2]
[323249235,1713846640748,-500.0,0.00012473,2]
[323249236,1713846640757,-500.0,0.00012473,2]
[323249237,1713846640767,-500.0,0.00012473,2]
[323249238,1713846640777,-500.0,0.00012473,2]
[323249239,1713846640787,-500.0,0.00012473,2]
[323249240,1713846640796,-500.0,0.00012473,2]
[323249241,1713846640805,-500.0,0.00012473,2]
[323249242,1713846640815,-520.88164261,0.00012473,2]
[323249243,1713846640824,-508.48167479,0.00012473,2]
[323249244,1713846640834,-500.0,0.00012473,2]
[323249245,1713846640843,-4006.29,0.00012473,2]
[323249246,1713846640853,-67940.82,0.00012473,2]
[323249247,1713846640863,-500.0,0.00012473,2]
[323249248,1713846640873,-500.0,0.00012473,2]
[323249249,1713846640882,-500.0,0.00012473,2]
[323249251,1713846640892,-500.0,0.00012473,2]
[323249253,1713846640901,-500.0,0.00012473,2]
[323249255,1713846640912,-500.0,0.00012473,2]
[323249257,1713846640921,-500.0,0.00012473,2]
[323249258,1713846640930,-500.0,0.00012473,2]
[323249259,1713846640939,-500.0,0.00012473,2]
[323249260,1713846640949,-509.14764831,0.00012473,2]
[323249261,1713846640958,-500.0,0.00012473,2]
[323249262,1713846640967,-1183.15,0.00012473,2]
[323249263,1713846640977,-500.0,0.00012473,2]
[323249264,1713846640988,-500.0,0.00012473,2]
[323249265,1713846641002,-500.0,0.00012473,2]
[323249266,1713846641012,-503.79223393,0.00012473,2]
[323249267,1713846641021,-500.0,0.00012473,2]
[323249268,1713846641031,-500.0,0.00012473,2]
[323249269,1713846641041,-500.0,0.00012473,2]
[323249270,1713846641051,-506.88844948,0.00012473,2]
[323249271,1713846641061,-500.0,0.00012473,2]
[323249272,1713846641072,-500.0,0.00012473,2]
[323249273,1713846641082,-500.0,0.00012473,2]
[323249274,1713846641092,-3974.55,0.00012473,2]
[323249275,1713846641101,-500.0,0.00012473,2]
[323249276,1713846641112,-7182.62,0.00012473,2]
[323249277,1713846641121,-500.0,0.00012473,2]
[323249278,1713846641131,-4271.28,0.00012473,2]
[323249279,1713846641140,-1215.67,0.00012473,2]
[323249280,1713846641149,-231.60376107,0.00012473,2]
[323249281,1713846641159,-500.0,0.00012473,2]
[323249282,1713846641168,-500.0,0.00012473,2]
[323249283,1713846641178,-568.44,0.00012473,2]
[323249284,1713846641188,-666.02,0.00012473,2]
[323249285,1713846641197,-500.0,0.00012473,2]
[323249286,1713846641209,-1141.93,0.00012473,2]
[323249287,1713846641218,-500.0,0.00012473,2]
[323249288,1713846641228,-1929.29,0.00012473,2]
[323249289,1713846641238,-500.0,0.00012473,2]
[323249290,1713846641248,-500.0,0.00012473,2]
[323249291,1713846641259,-500.0,0.00012473,2]
[323249292,1713846641269,-500.0,0.00012473,2]
[323249293,1713846641278,-500.0,0.00012473,2]
[323249294,1713846641288,-2842.13,0.00012473,2]
[323249295,1713846641298,-2734.9,0.00012473,2]
[323249296,1713846641308,-1694.63,0.00012473,2]
[323249297,1713846641317,-597.14958051,0.00012473,2]
[323249298,1713846641328,-529.22907206,0.00012473,2]
[323249299,1713846641337,-500.0,0.00012473,2]
[323249300,1713846641350,-500.0,0.00012473,2]
[323249301,1713846641361,-500.0,0.00012473,2]
[323249302,1713846641372,-500.0,0.00012473,2]
[323249303,1713846641382,-500.27092677,0.00012473,2]
[323249304,1713846641393,-500.0,0.00012473,2]
[323249305,1713846641403,-3818.66,0.00012473,2]
[323249306,1713846641413,-500.0,0.00012473,2]
[323249307,1713846641423,-697.95,0.00012473,2]
[323249308,1713846641433,-500.0,0.00012473,2]
[323249309,1713846641442,-500.0,0.00012473,2]
[323249310,1713846641452,-500.0,0.00012473,2]
[323249311,1713846641461,-500.0,0.00012473,2]
[323249312,1713846641471,-7048.42,0.00012473,2]
[323249313,1713846641480,-500.0,0.00012473,2]
[323249314,1713846641489,-7048.42,0.00012473,2]
[323249315,1713846641500,-7048.42,0.00012473,2]
[323249316,1713846641510,-3632.73,0.00012473,2]
[323249317,1713846641519,-7048.42,0.00012473,2]
[323249318,1713846641529,-7048.42,0.00012473,2]
[323249319,1713846641538,-7048.42,0.00012473,2]
[323249320,1713846641547,-7048.42,0.00012473,2]
[323249321,1713846641557,-500.0,0.00012473,2]
[323249322,1713846641566,-7048.42,0.00012473,2]
[323249323,1713846641575,-7048.42,0.00012473,2]
[323249324,1713846641585,-7048.42,0.00012473,2]
[323249325,1713846641594,-7048.42,0.00012473,2]
[323249326,1713846641603,-7048.42,0.00012473,2]
[323249327,1713846641613,-7048.42,0.00012473,2]
[323249328,1713846641623,-500.0,0.00012473,2]
[323249329,1713846641632,-7048.42,0.00012473,2]
[323249330,1713846641641,-7048.42,0.00012473,2]
[323249331,1713846641650,-7048.42,0.00012473,2]
[323249332,1713846641660,-7048.42,0.00012473,2]
[323249333,1713846641669,-7048.42,0.00012473,2]
[323249334,1713846641679,-7048.42,0.00012473,2]
[323249335,1713846641688,-7048.42,0.00012473,2]
[323249336,1713846641697,-500.0,0.00012473,2]
[323249337,1713846641707,-7048.42,0.00012473,2]
[323249338,1713846641716,-7048.42,0.00012473,2]
[323249339,1713846641725,-7048.42,0.00012473,2]
[323249340,1713846641735,-7048.49790696,0.00012473,2]
[323249341,1713846641744,-500.0,0.00012473,2]
[323249342,1713846641754,-500.0,0.00012473,2]
[323249343,1713846641763,-914.06,0.00012473,2]
[323249344,1713846641772,-500.0,0.00012473,2]
[323249345,1713846641782,-500.0,0.00012473,2]
[323249346,1713846641792,-500.0,0.00012473,2]
[323249347,1713846641802,-500.0,0.00012473,2]
[323249348,1713846641811,-500.0,0.00012473,2]
[323249349,1713846641821,-879.72,0.00012473,2]
[323249350,1713846641831,-500.0,0.00012473,2]
[323249351,1713846641840,-500.0,0.00012473,2]
[323249352,1713846641849,-500.0,0.00012473,2]
[323249353,1713846641859,-500.0,0.00012473,2]
[323249354,1713846641868,-3135.06,0.00012473,2]
[323249355,1713846641878,-500.0,0.00012473,2]
[323249356,1713846641887,-500.0,0.00012473,2]
[323249357,1713846641897,-2478.5,0.00012473,2]
[323249358,1713846641906,-500.0,0.00012473,2]
[323249359,1713846641916,-672.12,0.00012473,2]
[323249360,1713846641925,-500.0,0.00012473,2]
[323249361,1713846641935,-500.0,0.00012473,2]
[323249362,1713846641945,-500.0,0.00012473,2]
[323249363,1713846641955,-500.0,0.00012473,2]
[323249364,1713846641964,-500.0,0.00012473,2]
[323249365,1713846641973,-208.38556251,0.00012473,2]
[323249366,1713846641985,-501.17833952,0.00012473,2]
[323249367,1713846641997,-500.0,0.00012473,2]
[323249368,1713846642006,-500.0,0.00012473,2]
[323249369,1713846642015,-500.0,0.00012473,2]
[323249370,1713846642025,-677.01,0.00012473,2]
[323249371,1713846642036,-500.0,0.00012473,2]
[323249372,1713846642062,-500.0,0.00012473,2]
[323249373,1713846642091,-1137.64,0.00012473,2]
[323249374,1713846642118,-500.0,0.00012473,2]
[323249375,1713846642152,-286.61724969,0.00012473,2]
[323249376,1713846642182,-500.0,0.00012473,2]
[323249377,1713846642209,-506.365368,0.00012473,2]
[323249378,1713846642218,-500.0,0.00012473,2]
[323249379,1713846642227,-500.0,0.00012473,2]
[323249380,1713846642237,-469.20444215,0.00012473,2]
[323249381,1713846642246,-500.0,0.00012473,2]
[323249382,1713846642255,-4921.69,0.00012473,2]
[323249383,1713846642264,-504.35759875,0.00012473,2]
[323249384,1713846642273,-500.0,0.00012473,2]
[323249385,1713846642282,-985.18,0.00012473,2]
[323249386,1713846642291,-500.0,0.00012473,2]
[323249387,1713846642300,-500.0,0.00012473,2]
[323249388,1713846642310,-500.0,0.00012473,2]
[323249389,1713846642319,-500.0,0.00012473,2]
[323249390,1713846642328,-500.0,0.00012473,2]
[323249391,1713846642337,-500.0,0.00012473,2]
[323249392,1713846642346,-2879.78,0.00012473,2]
[323249393,1713846642355,-3724.61,0.00012473,2]
[323249394,1713846642366,-500.0,0.00012473,2]
[323249395,1713846642375,-576.94102538,0.00012473,2]
[323249396,1713846642385,-500.0,0.00012473,2]
[323249397,1713846642394,-551.48475181,0.00012473,2]
[323249398,1713846642403,-500.0,0.00012473,2]
[323249399,1713846642412,-500.0,0.00012473,2]
[323249400,1713846642421,-500.0,0.00012473,2]
[323249401,1713846642430,-500.0,0.00012473,2]
[323249402,1713846642440,-500.0,0.00012473,2]
[323249403,1713846642449,-500.0,0.00012473,2]
[323249404,1713846642459,-169.79235491,0.00012473,2]
[323249405,1713846642468,-500.0,0.00012473,2]
[323249406,1713846642477,-500.0,0.00012473,2]
[323249407,1713846642486,-500.0,0.00012473,2]
[323249408,1713846642496,-603.06,0.00012473,2]
[323249409,1713846642505,-500.0,0.00012473,2]
[323249410,1713846642514,-500.0,0.00012473,2]
[323249411,1713846642523,-500.0,0.00012473,2]
[323249412,1713846642532,-677.7,0.00012473,2]
[323249413,1713846642541,-500.0,0.00012473,2]
[323249414,1713846642550,-500.0,0.00012473,2]
[323249415,1713846642559,-500.0,0.00012473,2]
[323249416,1713846642567,-500.0,0.00012473,2]
[323249417,1713846642576,-597.44,0.00012473,2]
[323249418,1713846642586,-500.0,0.00012473,2]
[323249419,1713846642595,-500.0,0.00012473,2]
[323249420,1713846642604,-500.0,0.00012473,2]
[323249421,1713846642615,-1548.75,0.00012473,2]
[323249422,1713846642627,-500.0,0.00012473,2]
[323249423,1713846642636,-500.0,0.00012473,2]
[323249424,1713846642645,-500.0,0.00012473,2]
[323249425,1713846642655,-501.50594883,0.00012473,2]
[323249426,1713846642664,-508.88652378,0.00012473,2]
[323249427,1713846642673,-4676.04,0.00012473,2]
[323249428,1713846642682,-500.0,0.00012473,2]
[323249429,1713846642691,-501.63898812,0.00012473,2]
[323249430,1713846642700,-503.05136092,0.00012473,2]
[323249431,1713846642710,-500.0,0.00012473,2]
[323249432,1713846642719,-500.0,0.00012473,2]